fUSD/lending_fUSD_20250602
["ID","MTS","AMOUNT","RATE_DAILY","PERIOD"]
[363817789,1748885450122,-151.0,0.000221,2]
[363817791,1748885450133,-151.0,0.000221,2]
[363817793,1748885450142,-151.0,0.000221,2]
[363817795,1748885450152,-151.0,0.000221,2]
[363817797,1748885450161,-151.0,0.000221,2]
[363817799,1748885450172,-151.0,0.000221,2]
[363817801,1748885450182,-151.0,0.000221,2]
[363817803,1748885450192,-151.0,0.000221,2]
[363817805,1748885450202,-151.0,0.000221,2]
[363817807,1748885450211,-151.0,0.000221,2]
[363817809,1748885450221,-151.0,0.000221,2]
[363817811,1748885450231,-151.0,0.000221,2]
[363817813,1748885450240,-151.0,0.000221,2]
[363817816,1748885450250,-151.0,0.000221,2]
[363817817,1748885450259,-151.0,0.000221,2]
[363817819,1748885450269,-151.0,0.000221,2]
[363817821,1748885450278,-151.0,0.000221,2]
[363817823,1748885450287,-151.0,0.000221,2]
[363817825,1748885450297,-151.0,0.000221,2]
[363817827,1748885450306,-151.0,0.000221,2]
[363817829,1748885450316,-151.0,0.000221,2]
[363817832,1748885450326,-151.0,0.000221,2]
[363817834,1748885450335,-151.0,0.000221,2]
[363817835,1748885450345,-151.0,0.000221,2]
[363817837,1748885450355,-151.0,0.000221,2]
[363817839,1748885450364,-151.0,0.000221,2]
[363817841,1748885450374,-159.937507,0.000221,2]
[363817843,1748885450384,-232.93643927,0.0002211,2]
[363817845,1748885450394,-1174.0510405,0.00022168,2]
[363817847,1748885450404,-1500.0,0.00022168,2]
[363817850,1748885450415,-1500.0,0.00022168,2]
[363817852,1748885450425,-1500.0,0.00022168,2]
[363817854,1748885450435,-1500.0,0.00022168,2]
[363817856,1748885450447,-1500.0,0.00022168,2]
[363817858,1748885450457,-1500.0,0.00022168,2]
[363817860,1748885450467,-150.0,0.00022172,2]
[363817862,1748885450477,-5631.17961031,0.00022176,6]
[363817864,1748885450487,-150.0,0.00022188,2]
[363817866,1748885450498,-151.0,0.00022191,7]
[363817868,1748885450508,-151.0,0.00022191,7]
[363817870,1748885450517,-151.0,0.000222,7]
[363817872,1748885450527,-151.0,0.000222,7]
[363817874,1748885450537,-151.0,0.000222,7]
[363817875,1748885450548,-151.0,0.000222,7]
[363817878,1748885450559,-889.970059,0.000222,7]
[363817880,1748885450569,-889.970059,0.000222,7]
[363817881,1748885450578,-917.485102,0.000222,7]
[363817883,1748885450588,-917.485102,0.000222,7]
[363817885,1748885450597,-2296.58892776,0.00022233,2]
[363817887,1748885450607,-2500.0,0.00022264,2]
[363817889,1748885450616,-800.08098873,0.00022264,2]
[363817891,1748885450626,-150.0,0.00022329,2]
[363817893,1748885450635,-150.0,0.0002233,2]
[363817895,1748885450645,-3385.64300373,0.00022362,2]
[363817897,1748885450655,-238.02128021,0.0002245,2]
[363817899,1748885450666,-161.85462089,0.0002245,2]
[363817902,1748885450676,-1168.0684895,0.00022456,2]
[363817904,1748885450686,-155.07744,0.00022471,7]
[363817906,1748885450696,-151.0,0.00022471,7]
[363817908,1748885450706,-353.522937,0.00022471,7]
[363817910,1748885450716,-353.522937,0.00022471,7]
[363817911,1748885450726,-151.0,0.00022471,7]
[363817914,1748885450737,-151.0,0.00022471,7]
[363817916,1748885450747,-151.0,0.00022471,7]
[363817918,1748885450757,-151.0,0.00022471,7]
[363817920,1748885450767,-158.36503,0.00022471,7]
[363817940,1748885450954,-158.36503,0.00022471,7]
[363817942,1748885450964,-223.0315306,0.00022481,2]
[363817944,1748885450975,-328.15796843,0.00022492,7]
[363817946,1748885450986,-34394.10791189,0.000225,2]
[363817948,1748885450995,-1000.0,0.000225,2]
[363817950,1748885451005,-151.0,0.000225,7]
[363817952,1748885451014,-151.0,0.000225,7]
[363817954,1748885451024,-151.0,0.000225,7]
[363817956,1748885451033,-151.0,0.000225,7]
[363817958,1748885451043,-151.0,0.000225,7]
[363817960,1748885451053,-151.0,0.000225,7]
[363817962,1748885451067,-151.0,0.000225,7]
[363817964,1748885451081,-152.062676,0.000225,7]
[363817966,1748885451091,-151.0,0.000225,7]
[363817968,1748885451103,-242.014213,0.000225,7]
[363817970,1748885451112,-242.014213,0.000225,7]
[363817972,1748885451122,-160.582067,0.000225,7]
[363817974,1748885451132,-1094.27823635,0.0002254,2]
[363817976,1748885451142,-1052.60683322,0.0002254,2]
[363817978,1748885451152,-1056.56646383,0.0002254,2]
[363817980,1748885451162,-1022.28636112,0.0002254,2]
[363817982,1748885451173,-1217.41408868,0.0002254,2]
[363817984,1748885451183,-1000.0,0.00022557,2]
[363817986,1748885451193,-1000.0,0.0002256,2]
[363817988,1748885451203,-2296.58892776,0.00022567,2]
[363817990,1748885451212,-526.68197068,0.00022605,2]
[363817992,1748885451222,-162.380719,0.00022626,2]
[363817994,1748885451231,-719.04747942,0.00022626,2]
[363817996,1748885451240,-1156.41848616,0.00022627,2]
[363817998,1748885451250,-3385.64300373,0.0002267,2]
[363818000,1748885451259,-1000.0,0.00022671,2]
[363818002,1748885451269,-1000.0,0.00022685,2]
[363818004,1748885451279,-507.10412905,0.0002271,2]
[363818006,1748885451288,-2000.0,0.00022716,2]
[363818008,1748885451298,-2000.0,0.00022716,2]
[363818010,1748885451307,-2000.0,0.00022716,2]
[363818012,1748885451317,-338.8749224,0.00022716,2]
[363818014,1748885451327,-2014.33427356,0.00022716,2]
[363818016,1748885451337,-2000.0,0.00022716,2]
[363818018,1748885451347,-1000.0,0.00022723,2]
[363818020,1748885451356,-1500.0,0.00022748,3]
[363818022,1748885451366,-300.0,0.00022769,2]
[363818024,1748885451376,-7900.57798345,0.0002277,2]
[363818026,1748885451385,-61227.58051073,0.0002277,2]
[363818028,1748885451395,-151.0,0.0002277,7]
[363818030,1748885451404,-151.0,0.0002277,7]
[363818032,1748885451415,-1045.26793,0.0002277,7]
[363818034,1748885451424,-1045.26793,0.0002277,7]
[363818036,1748885451435,-426.979664,0.0002277,7]
[363818038,1748885451444,-426.979664,0.0002277,7]
[363818040,1748885451454,-151.0,0.0002277,7]
[363818042,1748885451464,-151.0,0.0002277,7]
[363818044,1748885451474,-2632.650723,0.00022785,7]
[363818046,1748885451483,-813.754927,0.00022785,7]
[363818048,1748885451492,-813.754926,0.00022785,7]
[363818050,1748885451502,-2632.65072801,0.00022785,7]
[363818052,1748885451511,-150.0,0.00022804,2]
[363818054,1748885451520,-357.4823279,0.00022812,2]
[363818056,1748885451530,-334.119589,0.00022814,2]
[363818057,1748885451540,-152.0,0.00022843,3]
[363818058,1748885451551,-7297.5325102,0.00022864,2]
[363818059,1748885451561,-13974.5857,0.00022864,2]
[363818060,1748885451570,-20000.0,0.0002288,2]
[363818061,1748885451579,-1001.0242,0.00022885,2]
[363818062,1748885451589,-2000.0,0.00022885,2]
[363818063,1748885451599,-2296.58892776,0.000229,2]
[363818064,1748885451609,-300.0,0.000229,8]
[363818065,1748885451619,-5631.17961031,0.00022934,8]
[363818066,1748885451629,-2016.57941302,0.00022956,2]
[363818068,1748885451638,-400.0,0.0002297,2]
[363818070,1748885451648,-400.0,0.0002297,2]
[363818071,1748885451658,-501.62148005,0.0002297,2]
[363818073,1748885451668,-1000.0,0.0002297,2]
[363818075,1748885451678,-1000.0,0.0002297,2]
[363818077,1748885451688,-1000.0,0.0002297,2]
[363818079,1748885451698,-1604.30819949,0.0002297,2]
[363818081,1748885451707,-1000.0,0.0002297,2]
[363818084,1748885451718,-1000.0,0.0002297,2]
[363818086,1748885451727,-63814.0117666,0.00022984,2]
[363818088,1748885451737,-27406.3866254,0.00022984,2]
[363818090,1748885451747,-54481.2704999,0.00022984,2]
[363818092,1748885451757,-6452.0057016,0.00022984,2]
[363818094,1748885451767,-12355.4237667,0.00022984,2]
[363818096,1748885451776,-56776.3218,0.00022984,2]
[363818098,1748885451786,-19194.262364,0.00022984,2]
[363818100,1748885451795,-11638.3815,0.00022984,2]
[363818102,1748885451806,-14071.92387635,0.0002299,2]
[363818104,1748885451815,-151.0,0.0002299,7]
[363818106,1748885451825,-166.45536,0.0002299,7]
[363818108,1748885451835,-176.205144,0.0002299,7]
[363818110,1748885451845,-176.205144,0.0002299,7]
[363818112,1748885451855,-404.504214,0.0002299,7]
[363818114,1748885451865,-404.504214,0.0002299,7]
[363818116,1748885451874,-819.829728,0.0002299,7]
[363818118,1748885451884,-819.829728,0.0002299,7]
[363818120,1748885451894,-1416.5241156,0.00022999,2]
[363818122,1748885451903,-151.0,0.00022999,7]
[363818123,1748885451914,-701.23309371,0.00023,2]
[363818125,1748885451924,-209.2,0.00023,2]
[363818128,1748885451934,-7819.05331127,0.00023,15]
[363818130,1748885451944,-1508.51189471,0.00023,2]
[363818132,1748885451954,-210.6,0.00023,2]
[363818134,1748885451964,-209.2,0.00023,2]
[363818136,1748885451975,-1000.0,0.00023,2]
[363818138,1748885451985,-1800.0,0.00023,24]
[363818140,1748885451995,-582121.98262385,0.00023,2]
[363818164,1748885452231,-3100.0,0.00023,2]
[363818166,1748885452245,-9616.69692703,0.00023,2]
[363818169,1748885452264,-1640.55,0.00023,2]
[363818173,1748885452298,-488.66430191,0.000219,2]
[363818176,1748885452310,-18376.00150891,0.000219,2]
[363818178,1748885452320,-5920.31671236,0.00023,2]
[363818180,1748885452337,-500.0,0.00020546,2]
[363818183,1748885452346,-1410.23488341,0.00023,2]
[363818190,1748885452410,-882.0,0.00020055,2]
[363818192,1748885452421,-500.0,0.00020546,2]
[363818194,1748885452431,-500.0,0.00020546,2]
[363818196,1748885452441,-500.0,0.00020546,2]
[363818198,1748885452450,-57.74720309,0.00020546,2]
[363818200,1748885452461,-442.25279691,0.00020546,2]
[363818202,1748885452470,-500.0,0.00020546,2]
[363818204,1748885452480,-500.0,0.00020546,2]
[363818206,1748885452489,-3103.52360699,0.00023,2]
[363818208,1748885452501,-1634.81672365,0.00023,2]
[363818211,1748885452521,-500.0,0.00020546,2]
[363818213,1748885452531,-383113.25817574,0.00023,2]
[363818215,1748885452540,-1559.66791457,0.00023,2]
[363818217,1748885452550,-290.90481786,0.00023,2]
[363818219,1748885452559,-57031.22200656,0.00023,2]
[363818221,1748885452569,-322156.4,0.00023,7]
[363818223,1748885452578,-151.0,0.00023,7]
[363818225,1748885452588,-151.0,0.00023,7]
[363818227,1748885452597,-151.0,0.00023,7]
[363818229,1748885452607,-152.785274,0.00023,7]
[363818231,1748885452616,-156.321867,0.00023,7]
[363818233,1748885452626,-151.0,0.00023,7]
[363818235,1748885452635,-151.0,0.00023,7]
[363818237,1748885452645,-151.0,0.00023,7]
[363818239,1748885452655,-151.0,0.00023,7]
[363818241,1748885452665,-151.0,0.00023,7]
[363818243,1748885452675,-151.0,0.00023,7]
[363818245,1748885452686,-151.0,0.00023,7]
[363818247,1748885452696,-151.0,0.00023,7]
[363818249,1748885452705,-151.299174,0.00023,7]
[363818251,1748885452715,-299.50673,0.00023,7]
[363818253,1748885452725,-151.0,0.00023,7]
[363818255,1748885452735,-151.0,0.00023,7]
[363818257,1748885452745,-151.0,0.00023,7]
[363818259,1748885452755,-151.0,0.00023,7]
[363818261,1748885452766,-2380.95,0.00023,2]
[363818263,1748885452775,-151.0,0.00023,7]
[363818265,1748885452784,-151.0,0.00023,7]
[363818268,1748885452799,-179.92536,0.00023,7]
[363818270,1748885452810,-179.92536,0.00023,7]
[363818272,1748885452819,-151.0,0.00023,7]
[363818274,1748885452829,-151.0,0.00023,7]
[363818276,1748885452839,-151.0,0.00023,7]
[363818278,1748885452849,-151.0,0.00023,7]
[363818280,1748885452859,-151.0,0.00023,7]
[363818282,1748885452868,-151.0,0.00023,7]
[363818284,1748885452878,-151.655062,0.00023,7]
[363818286,1748885452888,-151.655062,0.00023,7]
[363818288,1748885452897,-151.0,0.00023,7]
[363818290,1748885452906,-151.0,0.00023,7]
[363818292,1748885452916,-2000.0,0.00023,2]
[363818294,1748885452927,-151.0,0.00023,7]
[363818296,1748885452937,-151.0,0.00023,7]
[363818298,1748885452947,-151.0,0.00023,7]
[363818300,1748885452957,-152.681052,0.00023,7]
[363818302,1748885452966,-151.0,0.00023,7]
[363818304,1748885452976,-151.0,0.00023,7]
[363818305,1748885452986,-161.817706,0.00023,7]
[363818308,1748885452996,-151.0,0.00023,7]
[363818310,1748885453006,-151.0,0.00023,7]
[363818312,1748885453016,-215.960077,0.00023,7]
[363818314,1748885453025,-151.0,0.00023,7]
[363818316,1748885453035,-152.401211,0.00023,7]
[363818318,1748885453045,-151.0,0.00023,7]
[363818320,1748885453057,-160.57206,0.00023,7]
[363818322,1748885453067,-160.57206,0.00023,7]
[363818324,1748885453077,-691.364666,0.00023,7]
[363818326,1748885453087,-691.364666,0.00023,7]
[363818328,1748885453098,-152.343485,0.00023,7]
[363818330,1748885453108,-151.0,0.00023,7]
[363818332,1748885453118,-151.0,0.00023,7]
[363818334,1748885453129,-151.0,0.00023,7]
[363818336,1748885453139,-151.0,0.00023,7]
[363818348,1748885453150,-151.0,0.00023,7]
[363818350,1748885453267,-151.0,0.00023,7]
[363818352,1748885453276,-151.0,0.00023,7]
[363818354,1748885453285,-151.0,0.00023,7]
[363818356,1748885453294,-152.89649,0.00023,7]
[363818358,1748885453304,-553598.28812,0.00023,2]
[363818360,1748885453313,-151.0,0.00023,7]
[363818362,1748885453323,-345.216137,0.00023,7]
[363818364,1748885453332,-151.0,0.00023,7]
[363818365,1748885453341,-345.216137,0.00023,7]
[363818366,1748885453350,-151.0,0.00023,7]
[363818367,1748885453359,-151.0,0.00023,7]
[363818368,1748885453368,-151.0,0.00023,7]
[363818369,1748885453377,-151.0,0.00023,7]
[363818370,1748885453386,-151.0,0.00023,7]
[363818371,1748885453395,-508.826588,0.00023,7]
[363818372,1748885453404,-508.826588,0.00023,7]
[363818373,1748885453415,-172.910656,0.00023,7]
[363818375,1748885453424,-172.910656,0.00023,7]
[363818377,1748885453434,-502.37713,0.00023,2]
[363818379,1748885453443,-151.0,0.00023,7]
[363818380,1748885453453,-353.522937,0.00023,7]
[363818382,1748885453462,-353.522937,0.00023,7]
[363818383,1748885453472,-153.0,0.00023,2]
[363818384,1748885453485,-151.0,0.00023,7]
[363818385,1748885453495,-151.0,0.00023,7]
[363818386,1748885453504,-166.99127,0.00023,7]
[363818387,1748885453514,-151.0,0.00023,7]
[363818388,1748885453523,-151.0,0.00023,7]
[363818389,1748885453532,-151.0,0.00023,7]
[363818390,1748885453542,-151.0,0.00023,7]
[363818391,1748885453553,-151.0,0.00023,7]
[363818392,1748885453562,-151.0,0.00023,7]
[363818393,1748885453571,-158.36503,0.00023,7]
[363818394,1748885453582,-151.0,0.00023,7]
[363818395,1748885453591,-158.36503,0.00023,7]
[363818396,1748885453601,-151.0,0.00023,7]
[363818397,1748885453611,-151.0,0.00023,7]
[363818398,1748885453620,-225.093566,0.00023,7]
[363818399,1748885453630,-182.168884,0.00023,7]
[363818400,1748885453640,-182.168884,0.00023,7]
[363818401,1748885453650,-207.305105,0.00023,7]
[363818402,1748885453660,-151.0,0.00023,7]
[363818403,1748885453671,-207.305105,0.00023,7]
[363818404,1748885453682,-159.047766,0.00023,7]
[363818405,1748885453691,-151.0,0.00023,7]
[363818406,1748885453702,-151.0,0.00023,7]
[363818407,1748885453712,-151.0,0.00023,7]
[363818408,1748885453722,-151.0,0.00023,7]
[363818409,1748885453732,-151.0,0.00023,7]
[363818410,1748885453742,-151.0,0.00023,7]
[363818411,1748885453752,-242.014213,0.00023,7]
[363818412,1748885453762,-242.014213,0.00023,7]
[363818413,1748885453772,-800.0,0.00023,8]
[363818414,1748885453781,-800.0,0.00023,8]
[363818415,1748885453791,-800.0,0.00023,8]
[363818416,1748885453802,-800.0,0.00023,8]
[363818417,1748885453811,-800.0,0.00023,8]
[363818418,1748885453821,-800.0,0.00023,8]
[363818419,1748885453831,-800.0,0.00023,8]
[363818420,1748885453841,-800.0,0.00023,8]
[363818421,1748885453851,-800.0,0.00023,8]
[363818422,1748885453860,-800.0,0.00023,8]
[363818423,1748885453870,-151.0,0.00023,7]
[363818424,1748885453879,-176.205144,0.00023,7]
[363818425,1748885453890,-176.205144,0.00023,7]
[363818426,1748885453899,-151.0,0.00023,7]
[363818427,1748885453909,-1045.26793,0.00023,7]
[363818428,1748885453919,-1045.26793,0.00023,7]
[363818429,1748885453928,-151.0,0.00023,7]
[363818430,1748885453937,-404.504214,0.00023,7]
[363818432,1748885453946,-151.0,0.00023,7]
[363818434,1748885453956,-404.504214,0.00023,7]
[363818436,1748885453966,-889.970059,0.00023,7]
[363818438,1748885453975,-889.970059,0.00023,7]
[363818440,1748885453985,-426.979664,0.00023,7]
[363818442,1748885453995,-426.979664,0.00023,7]
[363818444,1748885454004,-151.0,0.00023,7]
[363818446,1748885454014,-151.0,0.00023,7]
[363818448,1748885454023,-151.0,0.00023,7]
[363818450,1748885454041,-151.0,0.00023,7]
[363818453,1748885454054,-494.0,0.00023,7]
[363818455,1748885454066,-375.0,0.00023,2]
[363818456,1748885454076,-2443.7712,0.00023,2]
[363818458,1748885454085,-2443.7712,0.00023,2]
[363818460,1748885454095,-6494.134523,0.00023,7]
[363818462,1748885454106,-6494.134523,0.00023,7]
[363818464,1748885454116,-767.0,0.00023,2]
[363818466,1748885454126,-3072.0271,0.00023,2]
[363818468,1748885454136,-3072.0271,0.00023,2]
[363818470,1748885454147,-819.829728,0.00023,7]
[363818471,1748885454157,-819.829728,0.00023,7]
[363818473,1748885454168,-917.485102,0.00023,7]
[363818475,1748885454178,-917.485102,0.00023,7]
[363818477,1748885454189,-151.0,0.00023,7]
[363818479,1748885454199,-500.0,0.00023,2]
[363818481,1748885454209,-151.0,0.00023,7]
[363818483,1748885454219,-154.88981804,0.00023,2]
[363818485,1748885454230,-237.0,0.00023,2]
[363818488,1748885454240,-2138.7478,0.00023,2]
[363818490,1748885454251,-2138.7478,0.00023,2]
[363818492,1748885454261,-151.0,0.00023,7]
[363818494,1748885454271,-151.0,0.00023,7]
[363818495,1748885454280,-4000.0,0.00023,4]
[363818497,1748885454290,-2474.351898,0.0002301,2]
[363818500,1748885454301,-158.0,0.00023014,7]
[363818501,1748885454311,-150.0,0.00023027,30]
[363818504,1748885454321,-150.0,0.00023027,30]
[363818506,1748885454332,-150.0,0.00023027,30]
[363818508,1748885454341,-150.0,0.00023027,30]
[363818510,1748885454350,-150.0,0.00023027,30]
[363818512,1748885454360,-250.0,0.00023027,30]
[363818513,1748885454370,-540.0,0.00023027,30]
[363818515,1748885454380,-500.0,0.00023027,2]
[363818517,1748885454390,-506.0,0.00023027,30]
[363818519,1748885454400,-500.0,0.00023027,30]
[363818521,1748885454410,-150.0,0.00023055,2]
[363818523,1748885454421,-613.511,0.00023055,2]
[363818525,1748885454431,-557.0,0.00023055,2]
[363818527,1748885454441,-588.0,0.00023055,2]
[363818529,1748885454451,-925.0,0.00023055,2]
[363818531,1748885454461,-1157.0,0.00023055,2]
[363818534,1748885454472,-155.0,0.00023055,2]
[363818535,1748885454482,-4075.0,0.00023055,2]
[363818538,1748885454492,-943.0,0.00023055,2]
[363818540,1748885454502,-882.0,0.00023055,2]
[363818542,1748885454511,-200.0,0.00023055,30]
[363818544,1748885454521,-250.0,0.00023055,30]
[363818546,1748885454531,-150.0,0.00023055,30]
[363818548,1748885454540,-267.65058881,0.00023055,30]
[363818549,1748885454550,-150.0,0.00023055,30]
[363818551,1748885454560,-540.0,0.00023055,30]
[363818553,1748885454570,-500.0,0.00023055,2]
[363818556,1748885454580,-506.0,0.00023055,30]
[363818558,1748885454589,-500.0,0.00023055,30]
[363818560,1748885454603,-616.39,0.00023058,2]
[363818562,1748885454612,-250.0,0.00023082,30]
[363818564,1748885454622,-255.94703788,0.00023082,30]
[363818566,1748885454632,-540.0,0.00023082,30]
[363818568,1748885454641,-500.0,0.00023082,2]
[363818570,1748885454651,-506.0,0.00023082,30]
[363818572,1748885454660,-500.0,0.00023082,30]
[363818574,1748885454671,-540.0,0.0002311,30]
[363818576,1748885454681,-500.0,0.0002311,2]
[363818578,1748885454691,-506.0,0.0002311,30]
[363818580,1748885454701,-500.0,0.0002311,30]
[363818582,1748885454710,-540.0,0.00023137,30]
[363818584,1748885454720,-500.0,0.00023137,2]
[363818586,1748885454730,-506.0,0.00023137,30]
[363818588,1748885454740,-500.0,0.00023137,30]
[363818590,1748885454750,-540.0,0.00023164,30]
[363818592,1748885454759,-500.0,0.00023164,2]
[363818594,1748885454769,-506.0,0.00023164,30]
[363818596,1748885454778,-500.0,0.00023164,30]
[363818598,1748885454787,-540.0,0.00023192,30]
[363818600,1748885454797,-500.0,0.00023192,2]
[363818602,1748885454808,-506.0,0.00023192,30]
[363818604,1748885454818,-520.7774755,0.00023192,30]
[363818606,1748885454828,-162.21,0.000232,8]
[363818608,1748885454838,-50583.99722809,0.000232,2]
[363818610,1748885454849,-2618.04,0.000232,2]
[363818612,1748885454859,-177.93175427,0.00023205,30]
[363818614,1748885454869,-152.0,0.00023218,4]
[363818616,1748885454879,-540.0,0.00023219,30]
[363818618,1748885454890,-506.0,0.00023219,30]
[363818620,1748885454900,-540.0,0.00023247,30]
[363818623,1748885454911,-506.0,0.00023247,30]
[363818625,1748885454923,-151.0,0.00023264,7]
[363818627,1748885454933,-151.0,0.00023264,7]
[363818629,1748885454944,-2500.0,0.00023264,2]
[363818631,1748885454954,-2500.0,0.00023264,2]
[363818633,1748885454964,-2500.0,0.00023264,2]
[363818635,1748885454975,-2500.0,0.00023264,2]
[363818636,1748885454987,-540.0,0.00023274,30]
[363818637,1748885454997,-506.0,0.00023274,30]
[363818638,1748885455008,-494.0,0.00023288,7]
[363818639,1748885455018,-150.0,0.00023288,2]
[363818640,1748885455028,-12053.0,0.000233,2]
[363818641,1748885455038,-540.0,0.00023301,30]
[363818642,1748885455048,-506.0,0.00023301,30]
[363818643,1748885455062,-540.0,0.00023329,30]
[363818645,1748885455073,-506.0,0.00023329,30]
[363818647,1748885455083,-501.56544652,0.00023342,2]
[363818649,1748885455093,-1000.0,0.00023347,2]
[363818651,1748885455104,-540.0,0.00023356,30]
[363818653,1748885455115,-506.0,0.00023356,30]
[363818655,1748885455125,-540.0,0.00023384,30]
[363818657,1748885455136,-506.0,0.00023384,30]
[363818660,1748885455151,-204.0,0.00023404,8]
[363818662,1748885455162,-540.0,0.00023411,30]
[363818664,1748885455174,-506.0,0.00023411,30]
[363818666,1748885455185,-62638.9653999,0.00023431,2]
[363818668,1748885455197,-21176.2350568,0.00023431,2]
[363818670,1748885455207,-12840.1445001,0.00023431,2]
[363818672,1748885455218,-540.0,0.00023438,30]
[363818675,1748885455229,-506.0,0.00023438,30]
[363818677,1748885455239,-24230.9523831,0.00023447,2]
[363818679,1748885455249,-48168.8114999,0.00023447,2]
[363818681,1748885455259,-179.111541,0.00023463,7]
[363818683,1748885455269,-151.0,0.00023463,7]
[363818685,1748885455280,-160.57206,0.00023463,7]
[363818687,1748885455290,-160.57206,0.00023463,7]
[363818689,1748885455300,-691.364666,0.00023463,7]
[363818691,1748885455310,-691.364666,0.00023463,7]
[363818693,1748885455320,-151.0,0.00023463,7]
[363818695,1748885455330,-151.0,0.00023463,7]
[363818697,1748885455340,-151.0,0.00023463,7]
[363818699,1748885455350,-151.0,0.00023463,7]
[363818701,1748885455360,-151.0,0.00023463,7]
[363818703,1748885455371,-154.970466,0.00023463,7]
[363818705,1748885455381,-151.0,0.00023463,7]
[363818707,1748885455392,-151.0,0.00023463,7]
[363818709,1748885455403,-345.216137,0.00023463,7]
[363818711,1748885455414,-345.216137,0.00023463,7]
[363818713,1748885455424,-151.0,0.00023463,7]
[363818716,1748885455435,-157.980437,0.00023463,7]
[363818718,1748885455445,-151.0,0.00023463,7]
[363818720,1748885455455,-151.0,0.00023463,7]
[363818722,1748885455464,-508.826588,0.00023463,7]
[363818724,1748885455474,-508.826588,0.00023463,7]
[363818725,1748885455484,-172.910656,0.00023463,7]
[363818727,1748885455494,-172.910656,0.00023463,7]
[363818729,1748885455503,-151.0,0.00023463,7]
[363818732,1748885455513,-151.0,0.00023463,7]
[363818733,1748885455523,-151.0,0.00023463,7]
[363818736,1748885455533,-151.0,0.00023463,7]
[363818738,1748885455544,-151.0,0.00023463,7]
[363818740,1748885455554,-151.0,0.00023463,7]
[363818742,1748885455564,-151.0,0.00023463,7]
[363818744,1748885455574,-182.168884,0.00023463,7]
[363818746,1748885455585,-182.168884,0.00023463,7]
[363818748,1748885455595,-207.305105,0.00023463,7]
[363818750,1748885455605,-151.0,0.00023463,7]
[363818752,1748885455615,-207.305105,0.00023463,7]
[363818754,1748885455626,-151.0,0.00023463,7]
[363818756,1748885455636,-151.0,0.00023463,7]
[363818758,1748885455646,-151.0,0.00023463,7]
[363818760,1748885455657,-151.0,0.00023463,7]
[363818762,1748885455667,-151.0,0.00023463,7]
[363818764,1748885455679,-151.0,0.00023463,7]
[363818766,1748885455689,-242.014213,0.00023463,7]
[363818768,1748885455699,-242.014213,0.00023463,7]
[363818771,1748885455710,-151.0,0.00023463,7]
[363818773,1748885455721,-176.205144,0.00023463,7]
[363818775,1748885455731,-176.205144,0.00023463,7]
[363818777,1748885455741,-151.0,0.00023463,7]
[363818779,1748885455751,-1045.26793,0.00023463,7]